bitfinex-derivatives/quotes_SOLF0:USTF0_20251024
["timestamp","ask_amount","ask_price","bid_price","bid_amount"]
[1761298167840,4.08247773,192.93,192.89,2.72]
[1761298168040,1.5129261,192.95,192.89,2.72]
[1761298168239,4.0823448,192.94,192.89,2.72]
[1761298168440,4.0823448,192.93,192.89,2.72]
[1761298168740,1.5129261,192.95,192.89,2.72]
[1761298168942,4.08234561,192.94,192.89,2.72]
[1761298169143,4.08234561,192.93,192.89,2.72]
[1761298169348,1.5129261,192.95,192.89,2.72]
[1761298169548,4.08214136,192.94,192.89,2.72]
[1761298169750,4.08214136,192.93,192.89,2.72]
[1761298169950,1.5129261,192.95,192.89,2.72]
[1761298170146,4.08214136,192.94,192.89,2.72]
[1761298170343,6.3531714,192.99,192.92,4.1529261]
[1761298170543,4.08230861,192.98,192.92,4.1529261]
[1761298170743,4.08230861,192.97,192.93,2.64]
[1761298170950,4.08230861,192.96,192.93,2.64]
[1761298171151,4.08230861,192.95,192.93,2.64]
[1761298171352,4.08230861,192.94,192.93,2.64]
[1761298172347,4.08230861,192.94,192.91,2.64]
[1761298172556,4.8402453,192.98,192.91,2.64]
[1761298172755,4.08232576,192.97,192.91,2.64]
[1761298172958,4.08232576,192.96,192.91,2.64]
[1761298173152,4.08232576,192.95,192.91,2.64]
[1761298173350,4.08232576,192.94,192.91,2.64]
[1761298173552,4.08232576,192.93,192.91,2.64]
[1761298173759,1.5129261,192.97,192.91,2.64]
[1761298174060,4.08251641,192.96,192.91,2.64]
[1761298174258,4.08251641,192.95,192.91,2.64]
[1761298174458,4.08251641,192.94,192.91,2.64]
[1761298174659,4.08251641,192.93,192.9,1.5129261]
[1761298174958,4.8402453,192.97,192.9,1.5129261]
[1761298175156,4.08270006,192.96,192.9,1.5129261]
[1761298175357,4.08270006,192.95,192.91,2.64]
[1761298175555,4.08270006,192.94,192.91,2.64]
[1761298175755,4.08270006,192.93,192.91,2.64]
[1761298176052,4.8402453,192.98,192.91,2.64]
[1761298176253,4.08389385,192.97,192.91,2.64]
[1761298176558,4.08389385,192.96,192.91,2.64]
[1761298176758,4.08389385,192.95,192.91,2.64]
[1761298176955,4.8402453,192.98,192.91,2.64]
[1761298176956,4.08389385,192.94,192.91,2.64]
[1761298177155,4.08389385,192.93,192.91,2.64]
[1761298177355,4.8402453,192.98,192.91,2.64]
[1761298177551,4.11620332,192.97,192.91,2.64]
[1761298177759,4.11620332,192.96,192.91,2.64]
[1761298177956,4.11620332,192.95,192.91,2.64]
[1761298178260,4.11620332,192.94,192.92,4.1529261]
[1761298178457,4.8402453,192.98,192.92,4.1529261]
[1761298178659,4.11676218,192.97,192.92,4.1529261]
[1761298178862,4.11676218,192.96,192.92,4.1529261]
[1761298179061,4.11676218,192.95,192.93,2.64]
[1761298179360,4.11676218,192.94,192.93,2.64]
[1761298182764,4.11676218,192.94,192.92,1.5129261]
[1761298183058,4.11676218,192.93,192.92,4.1529261]
[1761298190965,4.11676218,192.93,192.92,2.64]
[1761298204673,4.8402453,192.98,192.92,2.64]
[1761298204873,4.12758643,192.97,192.96,2.79]
[1761298208377,4.12758643,192.97,192.93,2.79]
[1761298208573,4.8402453,193.0,192.93,1.51247988]
[1761298208574,4.12758643,192.96,192.93,1.51247988]
[1761298208773,4.12758643,192.96,192.9,2.79]
[1761298208774,4.12758643,192.95,192.9,2.79]
[1761298208975,4.12758643,192.94,192.9,2.79]
[1761298209278,4.12758643,192.93,192.9,2.79]
[1761298209470,6.35272518,192.97,192.9,2.79]
[1761298209668,4.08563539,192.96,192.9,2.79]
[1761298209869,1.51247988,192.97,192.9,2.79]
[1761298210178,4.08563619,192.96,192.9,2.79]
[1761298210381,4.08563619,192.95,192.9,2.79]
[1761298210679,4.08563619,192.94,192.9,2.79]
[1761298210880,4.08563619,192.93,192.9,2.79]
[1761298211176,6.3411572,192.97,192.9,2.79]
[1761298211369,4.09003813,192.96,192.9,2.79]
[1761298211570,4.09003813,192.95,192.9,2.79]
[1761298211768,4.09003813,192.94,192.9,2.79]
[1761298211967,4.09003813,192.93,192.9,2.79]
[1761298212176,4.09119172,192.92,192.9,2.79]
[1761298212377,6.3411572,192.97,192.9,2.79]
[1761298212568,4.09129065,192.96,192.9,2.79]
[1761298212767,4.09129065,192.95,192.9,2.79]
[1761298213075,4.09129065,192.94,192.9,2.79]
[1761298213375,4.09129065,192.93,192.9,2.79]
[1761298213578,4.09129065,192.92,192.9,2.79]
[1761298213778,6.3411572,192.97,192.9,2.79]
[1761298213973,4.09314028,192.96,192.89,1.51247988]
[1761298214281,4.09314028,192.95,192.89,1.51247988]
[1761298214481,4.09314028,192.94,192.89,4.30247988]
[1761298214680,4.09314028,192.93,192.89,4.30247988]
[1761298214881,4.09314028,192.92,192.9,2.79]
[1761298215082,4.82867732,192.96,192.9,2.79]
[1761298215288,4.09307007,192.95,192.9,2.79]
[1761298215477,4.09307007,192.94,192.9,2.79]
[1761298215678,4.09307007,192.93,192.9,2.79]
[1761298215877,4.09307007,192.92,192.9,2.79]
[1761298216078,4.09307007,192.91,192.89,2.79]
[1761298216279,4.09307007,192.9,192.89,2.79]
[1761298216980,4.09307007,192.9,192.88,4.30247988]
[1761298217181,4.82867732,192.94,192.88,4.30247988]
[1761298217381,4.09271931,192.93,192.88,4.30247988]
[1761298217583,4.09271931,192.92,192.88,2.79]
[1761298217782,4.09271931,192.91,192.88,2.79]
[1761298217982,4.09271931,192.91,192.82,5.56856854]
[1761298217983,4.09271931,192.9,192.85,2.79]
[1761298218185,4.09271931,192.89,192.82,5.20454842]
[1761298218488,4.09271931,192.88,192.83,2.79]
[1761298218690,4.09271931,192.87,192.83,2.79]
[1761298218986,6.3411572,192.91,192.83,2.79]
[1761298219185,4.09067153,192.9,192.83,2.79]
[1761298219387,4.09067153,192.89,192.83,2.79]
[1761298219578,4.09067153,192.88,192.83,2.79]
[1761298219778,4.09067153,192.87,192.83,2.79]
[1761298219980,6.3411572,192.91,192.83,2.79]
[1761298220181,4.08893671,192.9,192.84,1.51247988]
[1761298220483,4.08893671,192.89,192.85,2.79]
[1761298220687,4.08893671,192.88,192.85,2.79]
[1761298220989,4.08893671,192.87,192.85,2.79]
[1761298221189,1.51247988,192.91,192.85,2.79]
[1761298221384,4.08724056,192.9,192.85,2.79]
[1761298221585,4.08724056,192.89,192.85,2.79]
[1761298221784,4.08724056,192.88,192.85,2.79]
[1761298221981,4.08724056,192.87,192.84,4.30247988]
[1761298222191,1.51247988,192.91,192.84,2.79]
[1761298222390,4.08479996,192.9,192.84,2.79]
[1761298222589,5.59727984,192.89,192.82,1.51247988]
[1761298222889,4.08479996,192.88,192.82,4.30247988]
[1761298223189,4.08479996,192.87,192.82,2.79]
[1761298223395,4.08479996,192.86,192.82,2.79]
[1761298223586,1.51247988,192.89,192.82,2.79]
[1761298223786,4.07698929,192.88,192.82,2.79]
[1761298223987,4.07698929,192.87,192.82,2.79]
[1761298224292,6.3411572,192.89,192.82,2.79]
[1761298224293,4.07698929,192.86,192.82,2.79]
[1761298224494,4.07698929,192.85,192.82,2.79]
[1761298224792,1.51247988,192.89,192.82,2.79]
[1761298224988,4.07497925,192.88,192.82,2.79]
[1761298225289,4.07497925,192.87,192.82,2.79]
[1761298225592,4.07497925,192.86,192.82,2.79]
[1761298225780,1.51247988,192.89,192.82,2.79]
[1761298226093,4.07321843,192.88,192.82,2.79]
[1761298226294,4.07321843,192.87,192.82,2.79]
[1761298226491,4.07321843,192.86,192.82,2.79]
[1761298226794,4.81421713,192.9,192.82,2.79]
[1761298227088,4.07150704,192.89,192.82,2.79]
[1761298227398,4.07150704,192.88,192.82,2.79]
[1761298227598,4.07150704,192.87,192.82,2.79]
[1761298227799,4.07150704,192.86,192.82,2.79]
[1761298228000,4.81421713,192.91,192.82,2.79]
[1761298228196,4.06995175,192.9,192.82,2.79]
[1761298228394,4.06995175,192.89,192.82,2.79]
[1761298228597,4.06995175,192.88,192.82,2.79]
[1761298228797,4.06995175,192.87,192.82,2.79]
[1761298228989,4.06995175,192.86,192.82,2.79]
[1761298229190,4.81421713,192.91,192.82,2.79]
[1761298229393,4.06763408,192.9,192.82,2.79]
[1761298229596,4.06763408,192.89,192.82,2.79]
[1761298229794,4.06763408,192.88,192.82,2.79]
[1761298230001,4.06763408,192.87,192.82,2.79]
[1761298230200,4.81421713,192.91,192.82,2.79]
[1761298230501,4.06718018,192.9,192.82,2.79]
[1761298230701,4.06718018,192.89,192.82,2.79]
[1761298231000,4.06718018,192.88,192.82,2.79]
[1761298231300,4.06718018,192.87,192.82,2.79]
[1761298231496,4.81421713,192.91,192.82,2.79]
[1761298231696,4.06564801,192.9,192.82,2.79]
[1761298231896,4.06564801,192.89,192.82,2.79]
[1761298232202,4.06564801,192.88,192.82,2.79]
[1761298232398,4.06564801,192.87,192.82,2.79]
[1761298232594,4.81421713,192.91,192.82,2.79]
[1761298232803,4.06490272,192.9,192.82,2.79]
[1761298233003,4.06490272,192.89,192.82,2.79]
[1761298233201,4.06490272,192.88,192.82,2.79]
[1761298233502,4.06490272,192.87,192.82,2.79]
[1761298233701,2.36547977,192.91,192.82,2.79]
[1761298233901,4.06405648,192.9,192.82,2.79]
[1761298234101,4.06405648,192.89,192.82,2.79]
[1761298234297,4.06405648,192.88,192.82,2.79]
[1761298234500,7.1796969,192.92,192.82,2.79]
[1761298234701,4.06110921,192.91,192.82,2.79]
[1761298235001,4.06110921,192.9,192.82,2.79]
[1761298235200,4.06110921,192.89,192.82,2.79]
[1761298235401,4.06110921,192.88,192.79,2.88]
[1761298235600,4.06110921,192.87,192.79,2.88]
[1761298235802,7.1796969,192.92,192.79,2.88]
[1761298236102,4.06062366,192.91,192.79,2.88]
[1761298236300,4.06062366,192.9,192.79,2.88]
[1761298236502,4.06062366,192.89,192.79,2.88]
[1761298236797,4.06062366,192.88,192.79,2.88]
[1761298237102,4.06062366,192.87,192.79,2.88]
[1761298237303,7.1796969,192.92,192.79,2.88]
[1761298237504,4.08393729,192.91,192.79,2.88]
[1761298237703,4.08393729,192.9,192.79,2.88]
[1761298237904,4.08393729,192.89,192.79,2.88]
[1761298238104,4.08393729,192.88,192.79,2.88]
[1761298238302,4.08393729,192.87,192.79,2.88]
[1761298238503,42.78,192.91,192.79,2.88]
[1761298238702,4.08142141,192.9,192.79,2.88]
[1761298238902,4.08142141,192.89,192.79,2.88]
[1761298239094,4.08142141,192.88,192.79,2.88]
[1761298239299,4.08142141,192.87,192.79,2.88]
[1761298239498,42.78,192.91,192.79,2.88]
[1761298239698,4.08137869,192.9,192.79,2.88]
[1761298239905,4.08137869,192.89,192.79,2.88]
[1761298240105,4.08137869,192.88,192.79,2.88]
[1761298240300,42.78,192.91,192.79,2.88]
[1761298240501,4.08118517,192.9,192.79,2.88]
[1761298240704,4.08118517,192.89,192.79,2.88]
[1761298240904,4.08118517,192.88,192.79,2.88]
[1761298241106,4.08154429,192.87,192.79,2.88]
[1761298241307,4.08123741,192.86,192.79,2.88]
[1761298241507,2.36547977,192.89,192.79,2.88]
[1761298241706,4.08099509,192.88,192.79,2.88]
[1761298242009,2.36547977,192.83,192.72,2.88]
[1761298242210,4.08099509,192.82,192.72,2.88]
[1761298242508,2.36547977,192.86,192.75,2.88]
[1761298242708,4.07838896,192.85,192.75,2.88]
[1761298242908,4.07838896,192.84,192.75,2.88]
[1761298243106,4.07838896,192.83,192.75,2.88]
[1761298243308,2.36547977,192.86,192.75,2.88]
[1761298243507,4.07747925,192.85,192.75,2.88]
[1761298243808,4.07747925,192.84,192.75,2.88]
[1761298244008,4.07747925,192.83,192.75,2.88]
[1761298244212,2.36547977,192.86,192.75,2.88]
[1761298244509,4.07633595,192.85,192.75,2.88]
[1761298244709,4.07633595,192.84,192.75,2.88]
[1761298244909,4.07633595,192.83,192.75,2.88]
[1761298245113,2.36547977,192.86,192.75,2.88]
[1761298245305,2.36547977,192.83,192.75,2.88]
[1761298253318,2.36547977,192.84,192.75,2.88]
[1761298253518,4.078541,192.83,192.75,2.88]
[1761298253717,2.36547977,192.84,192.75,2.88]
[1761298254017,4.07845763,192.83,192.75,2.88]
[1761298254322,2.36547977,192.84,192.75,2.88]
[1761298254522,4.07931754,192.83,192.75,2.88]
[1761298254818,2.36547977,192.84,192.75,2.88]
[1761298255021,4.07928059,192.83,192.75,2.88]
[1761298255223,2.36547977,192.84,192.75,2.88]
[1761298255421,4.07996948,192.83,192.75,2.88]
[1761298255621,2.36547977,192.84,192.75,2.88]
[1761298255822,4.07980543,192.83,192.75,2.88]
[1761298256021,2.36547977,192.84,192.75,2.88]
[1761298256222,4.07980624,192.83,192.75,2.88]
[1761298256422,2.36547977,192.84,192.75,2.88]
[1761298256619,4.08109987,192.83,192.75,2.88]
[1761298256822,2.36547977,192.84,192.75,2.88]
[1761298257118,4.08136163,192.83,192.75,2.88]
[1761298257323,2.36547977,192.84,192.75,2.88]
[1761298257621,4.08294465,192.83,192.75,2.88]
[1761298257826,2.36547977,192.84,192.75,2.88]
[1761298258026,4.08294465,192.83,192.75,2.88]
[1761298258227,2.36547977,192.84,192.75,2.88]
[1761298258526,4.08294465,192.83,192.75,2.88]
[1761298258720,2.36547977,192.84,192.75,2.88]
[1761298259021,4.08448651,192.83,192.75,2.88]
[1761298259224,2.36547977,192.84,192.75,2.88]
[1761298259525,4.08604314,192.83,192.75,2.88]
[1761298259723,4.08604314,192.82,192.75,2.88]
[1761298260019,2.36547977,192.84,192.75,2.88]
[1761298260223,4.08604395,192.83,192.75,2.88]
[1761298260426,4.08604395,192.82,192.75,2.88]
[1761298260629,2.36547977,192.84,192.75,2.88]
[1761298260927,4.08768706,192.83,192.75,2.88]
[1761298261121,4.08768706,192.82,192.75,2.88]
[1761298261322,2.36547977,192.84,192.75,2.88]
[1761298261522,4.09056311,192.83,192.75,2.88]
[1761298261721,4.09056311,192.82,192.75,2.88]
[1761298262022,2.36547977,192.84,192.75,2.88]
[1761298262227,4.09272548,192.83,192.75,2.88]
[1761298262427,4.09272548,192.82,192.75,2.88]
[1761298262628,2.36547977,192.84,192.75,2.88]
[1761298262822,4.09472346,192.83,192.75,2.88]
[1761298263125,2.36547977,192.81,192.75,2.88]
[1761298263327,4.09440302,192.8,192.75,2.88]
[1761298263524,2.36547977,192.81,192.75,2.88]
[1761298263728,4.0955584,192.8,192.75,2.88]
[1761298263922,2.36547977,192.81,192.75,2.88]
[1761298264123,4.09556036,192.8,192.75,2.88]
[1761298264319,2.36547977,192.81,192.75,2.88]
[1761298264523,4.09611142,192.8,192.75,2.88]
[1761298264826,2.36547977,192.81,192.75,2.88]
[1761298265024,4.09611257,192.8,192.75,2.88]
[1761298265225,2.36547977,192.81,192.75,2.88]
[1761298265427,4.09676808,192.8,192.75,2.88]
[1761298265627,2.36547977,192.81,192.75,2.88]
[1761298265827,4.09711052,192.8,192.75,2.88]
[1761298266028,2.36547977,192.81,192.75,2.88]
[1761298266227,4.09711584,192.8,192.75,2.88]
[1761298266428,4.12194534,192.79,192.75,2.88]
[1761298266729,2.36547977,192.81,192.75,2.88]
[1761298266925,4.12202728,192.8,192.75,2.88]
[1761298267130,4.12202728,192.79,192.75,2.88]
[1761298267333,2.36547977,192.81,192.75,2.88]
[1761298267534,4.12270433,192.8,192.75,2.88]
[1761298267731,4.12270433,192.79,192.75,2.88]
[1761298268036,4.12308665,192.78,192.75,2.88]
[1761298268234,2.36547977,192.81,192.75,2.88]
[1761298268436,4.12329132,192.8,192.75,2.88]
[1761298268738,4.12329132,192.79,192.75,2.88]
[1761298268932,4.12329132,192.78,192.75,2.88]
[1761298269132,2.36547977,192.81,192.75,2.88]
[1761298269329,2.36547977,192.78,192.71,2.82]
[1761298272230,2.36547977,192.8,192.71,2.82]
[1761298272430,4.12167243,192.79,192.71,2.82]
[1761298272732,4.12167243,192.78,192.71,2.82]
[1761298272936,2.36547977,192.8,192.71,2.82]
[1761298273133,4.12227916,192.79,192.71,2.82]
[1761298273334,4.12227916,192.78,192.71,2.82]
[1761298273633,4.12227916,192.77,192.71,2.82]
[1761298273833,2.36547977,192.8,192.71,2.82]
[1761298274025,4.12322772,192.79,192.71,2.82]
[1761298274226,4.12322772,192.78,192.71,2.82]
[1761298274433,4.12322772,192.77,192.71,2.82]
[1761298274737,2.36547977,192.8,192.71,2.82]
[1761298274927,4.1234037,192.79,192.71,2.82]
[1761298275131,4.1234037,192.78,192.71,2.82]
[1761298275329,4.1234037,192.77,192.71,2.82]
[1761298275529,2.36547977,192.8,192.71,2.82]
[1761298275828,4.12360186,192.79,192.71,2.82]
[1761298276022,4.12360186,192.78,192.71,2.82]
[1761298276224,4.12360186,192.77,192.71,2.82]
[1761298276422,2.36547977,192.8,192.71,2.82]
[1761298276623,4.12389371,192.79,192.71,2.82]
[1761298276825,4.12389371,192.78,192.71,2.82]
[1761298277028,4.12389371,192.77,192.71,2.82]
[1761298277232,2.36547977,192.8,192.71,2.82]
[1761298277429,4.12447485,192.79,192.71,2.82]
[1761298277731,4.12447485,192.78,192.71,2.82]
[1761298277929,4.12447485,192.77,192.71,2.82]
[1761298278130,2.36547977,192.8,192.71,2.82]
[1761298278331,4.12473024,192.79,192.71,2.82]
[1761298278623,4.12473024,192.78,192.71,2.82]
[1761298278826,4.12473024,192.77,192.71,2.82]
[1761298279028,2.36547977,192.8,192.71,2.82]
[1761298279229,4.12545037,192.79,192.71,2.82]
[1761298279434,4.12545037,192.78,192.71,2.82]
[1761298279632,4.12545037,192.77,192.71,2.82]
[1761298279936,2.36547977,192.8,192.71,2.82]
[1761298280136,4.12604508,192.79,192.71,2.82]
[1761298280336,4.12604508,192.78,192.71,2.82]
[1761298280536,4.12604508,192.77,192.71,2.82]
[1761298280836,4.12604508,192.76,192.71,2.82]
[1761298281136,2.36547977,192.8,192.71,2.82]
[1761298281337,4.12749669,192.79,192.71,2.82]
[1761298281536,4.12749669,192.78,192.71,2.82]
[1761298281734,4.12749669,192.77,192.71,2.82]
[1761298281937,4.12749669,192.76,192.71,2.82]
[1761298282129,2.36547977,192.8,192.71,2.82]
[1761298282329,4.12799075,192.79,192.71,2.82]
[1761298282532,7.17733857,192.8,192.71,2.82]
[1761298282533,4.12799075,192.78,192.71,2.82]
[1761298282731,4.12799075,192.77,192.71,2.82]
[1761298282937,4.12799075,192.76,192.71,2.82]
[1761298283134,7.17733857,192.8,192.71,2.82]
[1761298283333,4.12748975,192.79,192.71,2.82]
[1761298283536,4.12748975,192.78,192.71,2.82]
[1761298283836,6.49296952,192.77,192.68,0.90282912]
[1761298284040,4.12748975,192.76,192.69,2.82]
[1761298284242,6.49296952,192.75,192.69,2.82]
[1761298284433,4.12748975,192.74,192.69,2.82]
[1761298284633,4.12748975,192.73,192.69,2.82]
[1761298284935,2.36547977,192.75,192.69,2.82]
[1761298285138,4.12700689,192.74,192.69,2.82]
[1761298285337,4.12774329,192.73,192.69,2.82]
[1761298285639,2.36547977,192.75,192.69,2.82]
[1761298285840,4.12752275,192.74,192.69,2.82]
[1761298286139,2.36547977,192.72,192.66,2.82]
[1761298286347,4.12752275,192.71,192.66,2.82]
[1761298286536,4.12703762,192.7,192.66,2.82]
[1761298286737,1.51652648,192.7,192.66,2.82]
[1761298289538,1.51652648,192.68,192.66,2.82]
[1761298289739,1.51652648,192.68,192.62,3.79315716]
[1761298289941,1.51652648,192.64,192.62,2.89]
[1761298290243,1.51652648,192.7,192.62,2.89]
[1761298290434,4.11862507,192.69,192.62,2.89]
[1761298290634,1.51652648,192.7,192.62,2.89]
[1761298290832,4.11851777,192.69,192.62,2.89]
[1761298291038,1.51652648,192.7,192.62,2.89]
[1761298291243,4.11661554,192.69,192.62,2.89]
[1761298291449,1.51652648,192.66,192.62,2.89]
[1761298295158,1.51652648,192.68,192.62,2.89]
[1761298297061,1.51652648,192.66,192.62,2.89]
[1761298297949,1.51652648,192.68,192.62,2.89]
[1761298301462,4.8118588,192.74,192.62,2.89]
[1761298301664,1.51652648,192.68,192.62,2.89]
[1761298302664,1.51652648,192.7,192.62,2.89]
[1761298306067,4.8118588,192.75,192.62,2.89]
[1761298306262,1.51652648,192.7,192.63,2.89]
[1761298307263,1.51652648,192.72,192.64,1.51652648]
[1761298307471,4.17769726,192.71,192.65,2.89]
[1761298307669,1.51652648,192.72,192.65,2.89]
[1761298307869,4.17804773,192.71,192.65,2.89]
[1761298308071,1.51652648,192.72,192.65,2.89]
[1761298309971,1.51652648,192.74,192.66,2.89]
[1761298310266,4.18261314,192.73,192.66,2.89]
[1761298310469,4.18261314,192.72,192.66,2.89]
[1761298310669,1.51652648,192.74,192.66,2.89]
[1761298310870,4.18258562,192.73,192.66,2.89]
[1761298311070,1.51652648,192.74,192.66,2.89]
[1761298311263,4.18322613,192.73,192.66,2.89]
[1761298311464,4.18322613,192.72,192.66,2.89]
[1761298311664,1.51652648,192.76,192.67,2.89]
[1761298311858,4.18359124,192.75,192.69,2.89]
[1761298312056,99.95200555,192.77,192.69,2.89]
[1761298312271,4.1846465,192.76,192.69,2.89]
[1761298312471,4.1846465,192.75,192.69,2.89]
[1761298312771,4.1846465,192.74,192.69,2.89]
[1761298312974,99.95200555,192.77,192.69,2.89]
[1761298313169,4.18451683,192.76,192.69,2.89]
[1761298313374,4.18451683,192.75,192.69,2.89]
[1761298313565,4.18451683,192.74,192.69,2.89]
[1761298313864,99.95200555,192.77,192.69,2.89]
[1761298314062,4.18519949,192.76,192.69,2.89]
[1761298314263,4.18519949,192.75,192.69,2.89]
[1761298314461,4.18519949,192.74,192.69,2.89]
[1761298314665,99.95200555,192.77,192.69,2.89]
[1761298314870,4.1859258,192.76,192.69,2.89]
[1761298315077,4.1859258,192.75,192.69,2.89]
[1761298315268,4.1859258,192.74,192.69,2.89]
[1761298315465,99.95200555,192.77,192.69,2.89]
[1761298315665,4.18671285,192.76,192.69,2.89]
[1761298315869,4.18671285,192.75,192.69,2.89]
[1761298316170,4.18671285,192.74,192.69,2.89]
[1761298316370,1.51652648,192.75,192.69,2.89]
[1761298316576,4.18758316,192.74,192.69,2.89]
[1761298316779,1.51652648,192.75,192.69,2.89]
[1761298317077,1.51652648,192.73,192.69,2.89]
[1761298322281,4.19146172,192.72,192.69,2.89]
[1761298322479,1.51652648,192.73,192.69,2.89]
[1761298322678,4.19146408,192.72,192.69,2.89]
[1761298322876,1.51652648,192.73,192.69,2.89]
[1761298323078,4.19146172,192.72,192.69,2.89]
[1761298323382,1.51652648,192.73,192.69,2.89]
[1761298323584,4.19231583,192.72,192.69,2.89]
[1761298323883,1.51652648,192.73,192.69,2.89]
[1761298324085,4.1923168,192.72,192.69,2.89]
[1761298324287,1.51652648,192.73,192.69,2.89]
[1761298324884,103.23878299,192.77,192.69,2.89]
[1761298325090,1.51652648,192.74,192.69,2.89]
[1761298325282,4.19324262,192.73,192.69,2.89]
[1761298325482,4.19324262,192.72,192.69,2.89]
[1761298325682,1.51652648,192.74,192.69,2.89]
[1761298325882,4.19418387,192.73,192.69,2.89]
[1761298326190,4.19418387,192.72,192.69,2.89]
[1761298326389,1.51652648,192.74,192.69,2.89]
[1761298326586,4.17284526,192.73,192.69,2.89]
[1761298326886,1.51652648,192.74,192.69,2.89]
[1761298327077,4.17284608,192.73,192.69,2.89]
[1761298327277,4.17284608,192.72,192.69,2.89]
[1761298327481,1.51652648,192.74,192.69,2.89]
[1761298327681,4.17398193,192.73,192.69,2.89]
[1761298327882,4.17398193,192.72,192.69,2.89]
[1761298328084,1.51652648,192.74,192.69,2.89]
[1761298328284,4.1760947,192.73,192.69,2.89]
[1761298328485,4.1760947,192.72,192.69,2.89]
[1761298328683,1.51652648,192.74,192.69,2.89]
[1761298328884,4.17711138,192.73,192.69,2.89]
[1761298329095,4.17711138,192.72,192.69,2.89]
[1761298329292,1.51652648,192.7,192.63,2.65]
[1761298329488,1.51652648,192.67,192.63,2.65]
[1761298329686,4.17665951,192.66,192.63,2.65]
[1761298329993,1.51652648,192.65,192.61,2.65]
[1761298330380,4.80330392,192.71,192.61,2.65]
[1761298330583,1.51652648,192.66,192.61,2.65]
[1761298331585,4.17642545,192.65,192.61,2.65]
[1761298331891,1.51652648,192.66,192.61,2.65]
[1761298332087,1.51652648,192.64,192.61,2.65]
[1761298334897,4.80330392,192.69,192.61,2.65]
[1761298335189,1.51652648,192.67,192.61,2.65]
[1761298335398,1.51652648,192.65,192.61,2.65]
[1761298338994,1.51652648,192.63,192.61,2.65]
[1761298340098,4.17261843,192.62,192.58,2.65]
[1761298340295,1.51652648,192.6,192.58,2.65]
[1761298340992,1.51652648,192.6,192.51,1.51652648]
[1761298340993,5.20982218,192.59,192.48,2.65]
[1761298341191,1.51652648,192.51,192.48,2.65]
[1761298341394,6.40440522,192.62,192.48,2.65]
[1761298341395,4.16982218,192.57,192.48,2.65]
[1761298341600,1.51652648,192.55,192.48,2.65]
[1761298342092,42.96,192.57,192.48,2.65]
[1761298342093,1.51652648,192.51,192.48,2.65]
[1761298342304,1.51652648,192.52,192.48,2.65]
[1761298342796,1.51652648,192.5,192.48,2.65]
[1761298343899,1.51652648,192.52,192.48,2.65]
[1761298345099,1.51652648,192.49,192.48,2.65]
[1761298345792,1.51652648,192.49,192.45,0.90394306]
[1761298346093,1.51652648,192.46,192.42,2.65]
[1761298348901,2.37553732,192.47,192.42,2.65]
[1761298349293,43.04,192.52,192.42,2.65]
[1761298349490,2.37553732,192.48,192.42,2.65]
[1761298351103,2.37553732,192.45,192.37,2.63]
[1761298351302,2.37553732,192.41,192.37,2.63]
[1761298353497,2.37553732,192.48,192.37,2.63]
[1761298353903,2.37553732,192.44,192.37,2.63]
[1761298354099,2.37553732,192.47,192.38,4.6772]
[1761298354407,45.47553732,192.47,192.39,2.63]
[1761298356404,45.47553732,192.47,192.41,2.63]
[1761298356405,2.37553732,192.47,192.41,2.63]
[1761298356604,45.47553732,192.47,192.41,2.63]
[1761298357505,2.37553732,192.47,192.41,2.63]
[1761298358408,0.16873,192.51,192.41,2.63]
[1761298358608,2.37553732,192.48,192.42,2.63]